fUSD/lending_fUSD_20251221
["ID","MTS","AMOUNT","RATE_DAILY","PERIOD"]
[399310799,1766280641927,-7321.65924648,0.00016041,2]
[399310800,1766280641937,-9999.99,0.00016116,2]
[399310801,1766280641946,-150.0,0.00016137,2]
[399310802,1766280641955,-150.0,0.00016137,2]
[399310803,1766280641964,-620.0,0.00016149,2]
[399310804,1766280641974,-578.20924308,0.00016149,2]
[399310805,1766280641983,-160.0,0.00016149,2]
[399310806,1766280641993,-151.0,0.00016149,2]
[399310807,1766280642002,-151.0,0.00016149,2]
[399310808,1766280642011,-209.40437685,0.00016149,2]
[399310809,1766280642020,-1000.0,0.00016149,2]
[399310810,1766280642030,-1000.0,0.00016149,2]
[399310811,1766280642039,-1000.0,0.00016149,2]
[399310812,1766280642048,-1000.0,0.00016149,2]
[399310813,1766280642058,-579.4579192,0.00016149,2]
[399310814,1766280642067,-151.0,0.00016149,2]
[399310815,1766280642076,-541.13109174,0.00016149,2]
[399310816,1766280642085,-2346.0,0.00016149,2]
[399310817,1766280642095,-695.39793187,0.00016149,2]
[399310818,1766280642104,-553.64373807,0.00016149,2]
[399310819,1766280642113,-500.0,0.00016149,2]
[399310820,1766280642122,-500.0,0.00016149,2]
[399310821,1766280642132,-500.0,0.00016149,2]
[399310822,1766280642141,-500.0,0.00016149,2]
[399310823,1766280642155,-500.0,0.00016149,2]
[399310824,1766280642165,-500.0,0.00016149,2]
[399310825,1766280642174,-500.0,0.00016149,2]
[399310826,1766280642184,-1228.0,0.00016149,2]
[399310827,1766280642193,-500.0,0.00016149,2]
[399310828,1766280642203,-1000.0,0.00016149,2]
[399310829,1766280642212,-668.65185757,0.00016149,2]
[399310830,1766280642221,-1000.0,0.00016149,2]
[399310831,1766280642231,-1025.58359717,0.00016149,2]
[399310832,1766280642240,-300.0,0.00016149,2]
[399310833,1766280642249,-2000.0,0.00016149,2]
[399310834,1766280642258,-582.52208254,0.00016149,2]
[399310835,1766280642268,-200.0,0.00016149,2]
[399310836,1766280642277,-207.4,0.00016149,2]
[399310837,1766280642287,-215.0738,0.00016149,2]
[399310838,1766280642296,-223.0315306,0.00016149,2]
[399310839,1766280642305,-231.28369723,0.00016149,2]
[399310840,1766280642315,-239.84119403,0.00016149,2]
[399310841,1766280642325,-248.71531821,0.00016149,2]
[399310842,1766280642334,-210.62291181,0.00016149,2]
[399310843,1766280642343,-5000.00173956,0.000162,5]
[399310844,1766280642353,-150.0,0.00016243,2]
[399310845,1766280642363,-150.0,0.00016279,2]
[399310846,1766280642373,-868.57764283,0.00016327,2]
[399310847,1766280642382,-150.0,0.00016349,2]
[399310848,1766280642392,-1000.0,0.00016357,2]
[399310849,1766280642401,-1000.0,0.00016357,2]
[399310850,1766280642411,-1046.89,0.00016419,2]
[399310851,1766280642423,-150.0,0.0001642,2]
[399310852,1766280642433,-500.0,0.00016438,2]
[399310853,1766280642443,-500.0,0.00016438,2]
[399310854,1766280642452,-500.0,0.00016438,2]
[399310855,1766280642462,-500.0,0.00016438,2]
[399310856,1766280642471,-500.0,0.00016438,2]
[399310857,1766280642481,-500.0,0.00016438,2]
[399310858,1766280642492,-500.0,0.00016438,2]
[399310859,1766280642502,-500.0,0.00016438,2]
[399310860,1766280642511,-500.0,0.00016438,2]
[399310861,1766280642521,-500.0,0.00016438,2]
[399310862,1766280642530,-500.0,0.00016438,2]
[399310863,1766280642540,-500.0,0.00016438,2]
[399310864,1766280642549,-500.0,0.00016438,2]
[399310865,1766280642558,-500.0,0.00016438,2]
[399310866,1766280642568,-500.0,0.00016438,2]
[399310867,1766280642577,-500.0,0.00016438,2]
[399310868,1766280642593,-500.0,0.00016438,2]
[399310869,1766280642602,-500.0,0.00016438,2]
[399310870,1766280642615,-500.0,0.00016438,2]
[399310871,1766280642625,-500.0,0.00016438,2]
[399310872,1766280642635,-500.0,0.00016438,2]
[399310873,1766280642645,-500.0,0.00016438,2]
[399310874,1766280642654,-500.0,0.00016438,2]
[399310875,1766280642665,-500.0,0.00016438,2]
[399310876,1766280642676,-500.0,0.00016438,2]
[399310877,1766280642685,-500.0,0.00016438,2]
[399310878,1766280642695,-500.0,0.00016438,2]
[399310879,1766280642705,-500.0,0.00016438,2]
[399310880,1766280642716,-500.0,0.00016438,2]
[399310881,1766280642728,-500.0,0.00016438,2]
[399310882,1766280642737,-500.0,0.00016438,2]
[399310883,1766280642748,-500.0,0.00016438,2]
[399310884,1766280642757,-597.99750805,0.00016438,2]
[399310885,1766280642767,-500.0,0.00016438,2]
[399310886,1766280642777,-500.0,0.00016438,2]
[399310887,1766280642787,-500.0,0.00016438,2]
[399310888,1766280642798,-500.0,0.00016438,2]
[399310889,1766280642809,-500.0,0.00016438,2]
[399310890,1766280642819,-500.0,0.00016438,2]
[399310891,1766280642828,-500.0,0.00016438,2]
[399310892,1766280642840,-500.0,0.00016438,2]
[399310893,1766280642850,-500.0,0.00016438,2]
[399310894,1766280642859,-500.0,0.00016438,2]
[399310895,1766280642870,-500.0,0.00016438,2]
[399310896,1766280642880,-500.0,0.00016438,2]
[399310897,1766280642891,-500.0,0.00016438,2]
[399310898,1766280642901,-500.0,0.00016438,2]
[399310899,1766280642911,-500.0,0.00016438,2]
[399310900,1766280642921,-500.0,0.00016438,2]
[399310901,1766280642930,-500.0,0.00016438,2]
[399310902,1766280642940,-500.0,0.00016438,2]
[399310903,1766280642949,-500.0,0.00016438,2]
[399310904,1766280642959,-500.0,0.00016438,2]
[399310905,1766280642968,-500.0,0.00016438,2]
[399310906,1766280642978,-500.0,0.00016438,2]
[399310907,1766280642987,-500.0,0.00016438,2]
[399310908,1766280642997,-500.0,0.00016438,2]
[399310909,1766280643007,-500.0,0.00016438,2]
[399310910,1766280643016,-500.0,0.00016438,2]
[399310911,1766280643026,-500.0,0.00016438,2]
[399310912,1766280643036,-500.0,0.00016438,2]
[399310913,1766280643045,-500.0,0.00016438,2]
[399310914,1766280643054,-500.0,0.00016438,2]
[399310915,1766280643064,-500.0,0.00016438,2]
[399310916,1766280643073,-500.0,0.00016438,2]
[399310917,1766280643082,-500.0,0.00016438,2]
[399310918,1766280643092,-500.0,0.00016438,2]
[399310919,1766280643101,-500.0,0.00016438,2]
[399310920,1766280643111,-500.0,0.00016438,2]
[399310921,1766280643120,-500.0,0.00016438,2]
[399310922,1766280643129,-500.0,0.00016438,2]
[399310923,1766280643139,-499.99999999,0.00016438,2]
[399310924,1766280643148,-500.0,0.00016438,2]
[399310925,1766280643157,-500.0,0.00016438,2]
[399310926,1766280643166,-500.0,0.00016438,2]
[399310927,1766280643175,-500.0,0.00016438,2]
[399310928,1766280643186,-500.0,0.00016438,2]
[399310929,1766280643196,-500.0,0.00016438,2]
[399310930,1766280643205,-10191.1,0.00016438,2]
[399310931,1766280643214,-600.0,0.00016438,2]
[399310932,1766280643224,-551.75,0.00016438,2]
[399310933,1766280643234,-150.0,0.00016455,2]
[399310934,1766280643243,-6521.2966417,0.00016471,2]
[399310935,1766280643253,-7321.65924648,0.00016471,2]
[399310936,1766280643262,-168.0,0.00016561,2]
[399310937,1766280643271,-150.0,0.00016562,2]
[399310938,1766280643280,-150.0,0.00016562,2]
[399310939,1766280643290,-500.0,0.00016659,2]
[399310940,1766280643299,-8916.85710758,0.0001666,2]
[399310941,1766280643308,-150.0,0.00016668,2]
[399310942,1766280643319,-163.63163225,0.00016697,2]
[399310943,1766280643328,-151.0,0.00016697,2]
[399310944,1766280643338,-574.12855637,0.00016697,2]
[399310945,1766280643348,-738.435282,0.00016697,2]
[399310946,1766280643357,-150.0,0.00016703,2]
[399310947,1766280643367,-659.21,0.00016712,2]
[399310948,1766280643376,-659.21,0.00016712,2]
[399310949,1766280643385,-488.48,0.00016712,2]
[399310950,1766280643394,-600.0,0.00016712,2]
[399310951,1766280643403,-167.75,0.00016712,2]
[399310952,1766280643414,-150.0,0.00016774,2]
[399310953,1766280643424,-250.0,0.00016815,2]
[399310954,1766280643434,-846.45332019,0.0001683,2]
[399310955,1766280643443,-150.0,0.00016845,2]
[399310956,1766280643454,-200.0,0.00016863,2]
[399310957,1766280643463,-2000.0,0.00016864,2]
[399310958,1766280643474,-200.0,0.00016864,2]
[399310959,1766280643484,-200.0,0.00016864,2]
[399310960,1766280643493,-533.0,0.00016865,2]
[399310961,1766280643504,-157.945546,0.0001688,2]
[399310962,1766280643514,-150.0,0.0001688,2]
[399310963,1766280643523,-168.0,0.00016896,2]
[399310964,1766280643533,-300.0,0.00016899,2]
[399310965,1766280643542,-300.0,0.00016899,2]
[399310966,1766280643552,-10000.0,0.000169,2]
[399310967,1766280643817,-616.35544401,0.000169,2]
[399310968,1766280643863,-6521.2966417,0.000169,2]
[399310969,1766280643872,-7321.65924648,0.000169,2]
[399310970,1766280643881,-868.57764283,0.000169,2]
[399310971,1766280643891,-923.97051826,0.000169,2]
[399310972,1766280643900,-186.96215243,0.000169,2]
[399310973,1766280643909,-500.0,0.000169,2]
[399310974,1766280643918,-500.0,0.000169,2]
[399310975,1766280643927,-500.0,0.000169,2]
[399310976,1766280643936,-500.0,0.000169,2]
[399310977,1766280643945,-500.0,0.000169,2]
[399310978,1766280643955,-311.61071553,0.000169,2]
[399310979,1766280643965,-4154.0,0.000169,2]
[399310980,1766280643974,-1000.0,0.0001697,2]
[399310981,1766280643984,-500.0,0.0001697,2]
[399310982,1766280643993,-1000.0,0.0001697,2]
[399310983,1766280644002,-500.0,0.0001697,2]
[399310984,1766280644011,-1000.0,0.0001697,2]
[399310985,1766280644020,-500.0,0.0001697,2]
[399310986,1766280644029,-1000.0,0.0001697,2]
[399310987,1766280644039,-500.0,0.0001697,2]
[399310988,1766280644049,-500.0,0.0001697,2]
[399310989,1766280644058,-500.0,0.0001697,2]
[399310990,1766280644068,-1000.0,0.0001697,2]
[399310991,1766280644077,-500.0,0.0001697,2]
[399310992,1766280644087,-1303.24305354,0.0001697,2]
[399310993,1766280644096,-500.0,0.00016973,2]
[399310994,1766280644106,-191.38735328,0.00016973,2]
[399310995,1766280644115,-500.0,0.00016973,2]
[399310996,1766280644124,-500.0,0.00016973,2]
[399310997,1766280644134,-600.0,0.00016986,2]
[399310998,1766280644143,-150.00000001,0.00016986,2]
[399310999,1766280644153,-150.0,0.00016986,2]
[399311000,1766280644162,-165.0,0.0001699,2]
[399311001,1766280644171,-1526.74563698,0.00016998,2]
[399311002,1766280644181,-300.0,0.00016998,2]
[399311003,1766280644190,-309.49326248,0.00016998,2]
[399311004,1766280644199,-500.0,0.00016999,2]
[399311005,1766280644208,-500.0,0.00016999,2]
[399311006,1766280644217,-500.0,0.00016999,2]
[399311007,1766280644226,-537.03290161,0.00016999,2]
[399311008,1766280644235,-500.0,0.00016999,2]
[399311009,1766280644244,-500.0,0.00016999,2]
[399311010,1766280644253,-500.0,0.00016999,2]
[399311011,1766280644262,-500.0,0.00016999,2]
[399311012,1766280644271,-500.0,0.00016999,2]
[399311013,1766280644280,-500.0,0.00016999,2]
[399311014,1766280644290,-500.0,0.00016999,2]
[399311015,1766280644299,-500.0,0.00016999,2]
[399311016,1766280644308,-500.0,0.00016999,2]
[399311017,1766280644317,-360.07839417,0.00016999,2]
[399311018,1766280644325,-560.93,0.00016999,2]
[399311019,1766280644334,-560.93,0.00016999,2]
[399311020,1766280644343,-560.93,0.00016999,2]
[399311021,1766280644352,-560.93,0.00016999,2]
[399311022,1766280644362,-560.93,0.00016999,2]
[399311023,1766280644371,-560.93,0.00016999,2]
[399311024,1766280644379,-560.93,0.00016999,2]
[399311025,1766280644388,-560.93,0.00016999,2]
[399311026,1766280644398,-560.93,0.00016999,2]
[399311027,1766280644407,-560.93,0.00016999,2]
[399311028,1766280644419,-560.93,0.00016999,2]
[399311029,1766280644428,-560.93,0.00016999,2]
[399311030,1766280644437,-560.93,0.00016999,2]
[399311031,1766280644446,-560.93,0.00016999,2]
[399311032,1766280644455,-560.93,0.00016999,2]
[399311033,1766280644465,-560.93,0.00016999,2]
[399311034,1766280644474,-560.93,0.00016999,2]
[399311035,1766280644484,-560.93,0.00016999,2]
[399311036,1766280644495,-560.96701324,0.00016999,2]
[399311037,1766280644504,-300.0,0.00016999,2]
[399311038,1766280644513,-300.0,0.00016999,2]
[399311039,1766280644522,-956.17,0.00016999,2]
[399311040,1766280644531,-956.17,0.00016999,2]
[399311041,1766280644540,-956.17,0.00016999,2]
[399311042,1766280644550,-956.17,0.00016999,2]
[399311043,1766280644559,-956.17,0.00016999,2]
[399311045,1766280644568,-956.17,0.00016999,2]
[399311046,1766280644577,-956.17,0.00016999,2]
[399311048,1766280644587,-956.17,0.00016999,2]
[399311049,1766280644596,-956.17,0.00016999,2]
[399311050,1766280644605,-956.17,0.00016999,2]
[399311051,1766280644614,-956.17,0.00016999,2]
[399311052,1766280644623,-956.17,0.00016999,2]
[399311053,1766280644632,-956.17,0.00016999,2]
[399311054,1766280644641,-956.17,0.00016999,2]
[399311055,1766280644650,-956.17,0.00016999,2]
[399311056,1766280644659,-956.17,0.00016999,2]
[399311057,1766280644668,-956.17,0.00016999,2]
[399311058,1766280644678,-956.17,0.00016999,2]
[399311059,1766280644687,-956.22777372,0.00016999,2]
[399311060,1766280644696,-300.0,0.00016999,2]
[399311061,1766280644705,-300.0,0.00016999,2]
[399311062,1766280644714,-1034408.62301982,0.00017,2]
[399311063,1766280645613,-2657.0716879,0.00017,2]
[399311064,1766280645624,-2377.48974695,0.00017,2]
[399311065,1766280645635,-3130.65614375,0.00017,2]
[399311066,1766280645749,-2050.77884625,0.00017,2]
[399311067,1766280645761,-6865.63692011,0.00017,2]
[399311068,1766280645771,-723.72753373,0.00017,2]
[399311069,1766280645921,-2812.707,0.00014842,2]
[399311070,1766280645930,-1052.03689552,0.00017,2]
[399311071,1766280645942,-2343.68669856,0.00017,2]
[399311072,1766280645952,-1233.02197146,0.00017,2]
[399311073,1766280646013,-1318.42,0.00016712,2]
[399311074,1766280646023,-2264.82167825,0.00017,2]
[399311075,1766280646035,-319.35771531,0.00017,2]
[399311079,1766280646416,-500.0,0.00013698,2]
[399311080,1766280646426,-500.0,0.00013698,2]
[399311081,1766280646437,-500.0,0.00013698,2]
[399311082,1766280646447,-508.72089937,0.00013698,2]
[399311083,1766280646457,-1000.0,0.000168,2]
[399311084,1766280646466,-3791.30799741,0.00017,2]
[399311085,1766280646490,-5982.12869534,0.00017,2]
[399311086,1766280646501,-956.0,0.00017,2]
[399311087,1766280646572,-786.29556147,0.00017,2]
[399311088,1766280646584,-3473.25000508,0.00017,2]
[399311089,1766280646598,-2282.33,0.00017,2]
[399311090,1766280646609,-528.99028445,0.00017,2]
[399311091,1766280646628,-14439.6847663,0.00017,2]
[399311092,1766280646639,-1126.22586249,0.00017,2]
[399311093,1766280646651,-6668.74975226,0.00017,2]
[399311094,1766280646661,-838.520007,0.00017,2]
[399311095,1766280646672,-32972.80445528,0.00017,2]
[399311106,1766280746686,165.04261464,0.000176,30]
[399311148,1766280902052,300.34370087,0.00022,30]
[399311149,1766280907414,199.0,0.00021318,120]
[399311150,1766280909593,199.0,0.00022384,120]
[399311195,1766281370342,157.94899209,0.000135,4]
[399311282,1766281821881,3200.0,0.000226,120]
[399311289,1766281831411,-717.197,0.00012676,2]
[399311290,1766281831421,-1210.48094371,0.0001279,2]
[399311291,1766281831432,-769.06953827,0.0001279,2]
[399311292,1766281831443,-116.20836597,0.00012834,2]
[399311293,1766281831464,-183.79163403,0.00012834,2]
[399311294,1766281831474,-124.55480381,0.00012834,2]
[399311295,1766281831486,-175.44519619,0.00012834,2]
[399311296,1766281831504,-1126.55480381,0.00012834,2]
[399311297,1766281831516,-73.44519619,0.00012834,2]
[399311298,1766281831526,-435.43910473,0.00012834,2]
[399311299,1766281831535,-490.11569908,0.00012835,2]
[399311300,1766281831546,-2009.88430092,0.00012835,2]
[399311301,1766281831555,-1497.2222221,0.00012835,2]
[399311302,1766281831569,-767.65269711,0.00012835,2]
[399311303,1766281831580,-8491.11409063,0.00012835,2]
[399311304,1766281831591,-11072.2967764,0.00012835,2]
[399311323,1766281837482,-563.94852852,0.00012835,2]
[399311324,1766281837535,-11822.92334483,0.00012835,2]
[399311325,1766281837546,-657.3958281,0.00012835,2]
[399311326,1766281837557,-1017.39177048,0.00012835,2]
[399311327,1766281837589,-10869.68645824,0.00012835,2]
[399311340,1766281840848,-953240.36828359,0.00012835,2]
[399311341,1766281840860,-156.49671297,0.0001289,2]
[399311342,1766281840873,-300.0,0.00012891,2]
[399311343,1766281840885,-151.0,0.00012927,2]
[399311344,1766281840897,-151.0,0.00012927,2]
[399311345,1766281840910,-151.0,0.00012927,2]
[399311346,1766281840922,-151.0,0.00012927,2]
[399311347,1766281840934,-151.0,0.00012927,2]
[399311348,1766281840946,-158.51442108,0.00012927,2]
[399311349,1766281840958,-254.04843714,0.00012927,2]
[399311350,1766281840971,-1000.0,0.00012992,2]
[399311351,1766281840983,-1358.3835,0.00012992,2]
[399311352,1766281840995,-1979.55048196,0.00013247,2]
[399311353,1766281841008,-8883.79,0.00013465,2]
[399311354,1766281841021,-558.85247146,0.00013698,2]
[399311355,1766281841033,-500.0,0.00013698,2]
[399311356,1766281841046,-500.0,0.00013698,2]
[399311357,1766281841059,-500.0,0.00013698,2]
[399311358,1766281841072,-516.98703882,0.00013698,2]
[399311359,1766281841084,-500.0,0.00013698,2]
[399311360,1766281841097,-500.0,0.00013698,2]
[399311361,1766281841110,-500.0,0.00013698,2]
[399311362,1766281841121,-511.74808799,0.00013698,2]
[399311363,1766281841133,-500.0,0.00013698,2]
[399311364,1766281841144,-500.0,0.00013698,2]
[399311365,1766281841156,-500.0,0.00013698,2]
[399311366,1766281841168,-500.0,0.00013698,2]
[399311367,1766281841180,-500.0,0.00013698,2]
[399311368,1766281841193,-500.0,0.00013698,2]
[399311369,1766281841207,-500.0,0.00013698,2]
[399311370,1766281841219,-509.35122608,0.00013698,2]
[399311371,1766281841231,-555.13,0.00013698,2]
[399311372,1766281841243,-555.13,0.00013698,2]
[399311373,1766281841254,-555.13,0.00013698,2]
[399311374,1766281841267,-555.13,0.00013698,2]
[399311375,1766281841279,-500.0,0.00013698,2]
[399311376,1766281841291,-500.0,0.00013698,2]
[399311377,1766281841304,-500.0,0.00013698,2]
[399311378,1766281841316,-508.14814092,0.00013698,2]
[399311379,1766281841329,-500.0,0.00013698,2]
[399311380,1766281841341,-500.0,0.00013698,2]
[399311381,1766281841352,-500.0,0.00013698,2]
[399311382,1766281841364,-272.64271417,0.00013698,2]
[399311383,1766281841376,-500.0,0.00013698,2]
[399311384,1766281841388,-596.20415987,0.00013698,2]
[399311385,1766281841400,-799.31,0.00013698,2]
[399311386,1766281841413,-799.31,0.00013698,2]
[399311387,1766281841425,-799.31,0.00013698,2]
[399311388,1766281841436,-799.31,0.00013698,2]
[399311389,1766281841449,-500.0,0.00013698,2]
[399311390,1766281841460,-500.0,0.00013698,2]
[399311391,1766281841473,-500.0,0.00013698,2]
[399311392,1766281841484,-500.0,0.00013698,2]
[399311393,1766281841496,-500.0,0.00013698,2]
[399311394,1766281841508,-500.0,0.00013698,2]
[399311395,1766281841519,-1000.0,0.00013699,2]
[399311396,1766281841531,-194.3019907,0.00013699,2]
[399311397,1766281841543,-176.97036574,0.00013699,2]
[399311398,1766281841555,-1979.55048196,0.00013703,2]
[399311399,1766281841567,-655.0,0.00013757,2]
[399311400,1766281841579,-1392.79727746,0.00013785,2]
[399311401,1766281841590,-156.49671293,0.00013893,2]
[399311402,1766281841603,-2500.0,0.00013944,2]
[399311403,1766281841615,-2500.0,0.00013944,2]
[399311404,1766281841627,-2500.0,0.00013944,2]
[399311405,1766281841639,-2500.0,0.00013944,2]
[399311406,1766281841651,-2500.0,0.00013944,2]
[399311407,1766281841662,-300.0,0.00013944,2]
[399311408,1766281841674,-300.0,0.00013944,2]
[399311409,1766281841685,-300.0,0.00013944,2]
[399311410,1766281841696,-300.0,0.00013944,2]
[399311411,1766281841708,-300.0,0.00013944,2]
[399311412,1766281841720,-151.52596867,0.00013944,2]
[399311414,1766281841731,-300.0,0.00013944,2]
[399311415,1766281841742,-300.0,0.00013944,2]
[399311416,1766281841753,-300.0,0.00013944,2]
[399311417,1766281841763,-300.0,0.00013944,2]
[399311418,1766281841774,-302.23383617,0.00013944,2]
[399311419,1766281841785,-195.0,0.00013944,2]
[399311420,1766281841796,-372.0,0.00013988,2]
[399311421,1766281841807,-218.75629177,0.00014037,2]
[399311422,1766281841818,-200.0,0.00014068,2]
[399311423,1766281841830,-420.0,0.00014077,2]
[399311424,1766281841844,-166.66,0.00014085,2]
[399311425,1766281841855,-500.0,0.00014112,2]
[399311426,1766281841866,-555.13,0.00014112,2]
[399311427,1766281841879,-799.31,0.00014112,2]
[399311428,1766281841890,-500.0,0.00014112,2]
[399311429,1766281841902,-1399.0,0.00014117,2]
[399311430,1766281841914,-1979.55048196,0.0001416,2]
[399311431,1766281841926,-166.66,0.00014381,2]
[399311432,1766281841938,-1250.68,0.00014504,2]
[399311433,1766281841948,-5150.19,0.00014504,2]
[399311434,1766281841960,-166.67,0.00014552,2]
[399311435,1766281841971,-218.75629177,0.0001461,2]
[399311436,1766281841983,-1979.55048196,0.00014617,2]
[399311437,1766281841994,-166.66,0.00014678,2]
[399311438,1766281842006,-156.75,0.00014838,2]
[399311439,1766281842017,-156.49671293,0.00014895,2]
[399311440,1766281842030,-166.66,0.00014974,2]
[399311441,1766281842041,-173.48,0.00015,2]
[399311442,1766281842053,-1979.55048196,0.00015073,2]
[399311443,1766281842063,-1609.0,0.00015142,2]
[399311444,1766281842075,-612.0,0.00015142,2]
[399311445,1766281842087,-1332.718,0.00015142,2]
[399311446,1766281842099,-1264.744,0.00015142,2]
[399311447,1766281842112,-518.0,0.00015142,2]
[399311448,1766281842123,-564.0,0.00015142,2]
[399311449,1766281842134,-2429.0,0.00015142,2]
[399311450,1766281842145,-218.75629177,0.00015182,2]
[399311451,1766281842155,-3121.96,0.00015269,2]
[399311452,1766281842166,-166.66,0.00015271,2]
[399311453,1766281842177,-150.0,0.00015288,2]
[399311454,1766281842189,-150.0,0.00015288,2]
[399311455,1766281842201,-587.0,0.0001544,2]
[399311456,1766281842213,-150.0,0.00015476,2]
[399311457,1766281842225,-1979.55048196,0.0001553,2]
[399311458,1766281842238,-166.66,0.00015567,2]
[399311459,1766281842249,-150.0,0.00015571,2]
[399311461,1766281842260,-150.0,0.00015665,2]
[399311463,1766281842270,-166.67,0.00015753,2]
[399311464,1766281842281,-218.75629177,0.00015755,2]
[399311465,1766281842292,-150.0,0.00015854,2]
[399311466,1766281842302,-150.0,0.00015854,2]
[399311467,1766281842314,-156.49671293,0.00015898,2]
[399311468,1766281842324,-1979.55048196,0.00015987,2]
[399311469,1766281842335,-500.0,0.00015999,2]
[399311470,1766281842347,-500.0,0.00015999,2]
[399311471,1766281842358,-547.3467704,0.00015999,2]
[399311472,1766281842369,-555.13,0.00015999,2]
[399311473,1766281842380,-555.13,0.00015999,2]
[399311475,1766281842390,-555.13,0.00015999,2]
[399311477,1766281842401,-555.13,0.00015999,2]
[399311479,1766281842412,-555.13,0.00015999,2]
[399311482,1766281842423,-799.31,0.00015999,2]
[399311484,1766281842434,-799.31,0.00015999,2]
[399311485,1766281842445,-799.31,0.00015999,2]
[399311486,1766281842456,-799.31,0.00015999,2]
[399311487,1766281842467,-799.31,0.00015999,2]
[399311489,1766281842478,-500.0,0.00015999,2]
[399311491,1766281842489,-500.0,0.00015999,2]
[399311493,1766281842500,-500.0,0.00015999,2]
[399311495,1766281842511,-500.0,0.00015999,2]
[399311496,1766281842522,-500.0,0.00015999,2]
[399311497,1766281842533,-150.0,0.00016043,2]
[399311498,1766281842544,-9999.99,0.00016116,2]
[399311499,1766281842555,-150.0,0.00016137,2]
[399311501,1766281842567,-668.65185757,0.00016149,2]
[399311502,1766281842580,-160.69095314,0.00016149,2]
[399311503,1766281842591,-695.39793187,0.00016149,2]
[399311504,1766281842603,-1000.0,0.00016149,2]
[399311505,1766281842613,-1000.0,0.00016149,2]
[399311506,1766281842624,-1034.99559878,0.00016149,2]
[399311507,1766281842635,-151.0,0.00016149,2]
[399311508,1766281842646,-151.0,0.00016149,2]
[399311509,1766281842656,-209.83364427,0.00016149,2]
[399311510,1766281842668,-2346.0,0.00016149,2]
[399311511,1766281842679,-154.29415654,0.00016149,2]
[399311512,1766281842690,-1000.0,0.00016149,2]
[399311513,1766281842700,-1000.0,0.00016149,2]
[399311514,1766281842711,-1000.0,0.00016149,2]
[399311515,1766281842722,-1000.0,0.00016149,2]
[399311516,1766281842733,-595.50743228,0.00016149,2]
[399311517,1766281842743,-200.0,0.00016149,2]
[399311534,1766281843474,-207.4,0.00016149,2]
[399311535,1766281843507,-1492.1619871,0.00016149,2]
[399311536,1766281843529,-553.64373807,0.00016149,2]
[399311537,1766281843540,-215.0738,0.00016149,2]
[399311538,1766281843549,-223.0315306,0.00016149,2]
[399311539,1766281843559,-555.0362874,0.00016149,2]
[399311540,1766281843567,-231.28369723,0.00016149,2]
[399311541,1766281843576,-239.84119403,0.00016149,2]
[399311542,1766281843585,-248.71531821,0.00016149,2]
[399311543,1766281843594,-223.01987484,0.00016149,2]
[399311544,1766281843603,-500.0,0.00016149,2]
[399311545,1766281843612,-500.0,0.00016149,2]
[399311546,1766281843622,-300.0,0.00016149,2]
[399311547,1766281843632,-500.0,0.00016149,2]
[399311548,1766281843641,-500.0,0.00016149,2]
[399311549,1766281843652,-2000.0,0.00016149,2]
[399311550,1766281843661,-500.0,0.00016149,2]